[Event "44th Chess Olympiad Women 2022"]
[Site "Chennai"]
[Date "2022.08.01"]
[Round "4.38"]
[White "Moaataz, Ayah"]
[Black "Burbach, Anya Belle"]
[Result "1/2-1/2"]
[WhiteElo "2119"]
[BlackElo "1375"]
[Annotator "NA RC"]
[PlyCount "92"]
[EventDate "2022.??.??"]
[TimeControl "60"]

1. c4 {[%emt 0:00:03]} e5 {[%emt 0:01:14]} 2. g3 {[%emt 0:00:07]} Nc6 {[%emt 0:
00:00]} 3. Nc3 {[%emt 0:00:14]} f5 {[%emt 0:00:37]} 4. Nf3 {[%emt 0:02:05]} Nf6
{[%emt 0:04:02]} 5. d4 {[%emt 0:04:19]} e4 {[%emt 0:07:11]} 6. Nh4 {[%emt 0:00:
00]} d6 {[%emt 0:04:10]} 7. Bh3 {[%emt 0:01:51]} g6 {[%emt 0:03:34]} 8. O-O {
[%emt 0:10:14]} Bg7 {[%emt 0:02:00]} 9. Rb1 {[%emt 0:05:15]} O-O {[%emt 0:00:
00]} 10. Ng2 {[%emt 0:08:28]} h6 {[%emt 0:02:47]} 11. f3 {[%emt 0:16:19]} Qe8 {
[%emt 0:10:13]} 12. d5 {[%emt 0:07:50]} Ne5 {[%emt 0:07:31]} 13. Nb5 {[%emt 0:
00:00]} Qe7 {[%emt 0:03:11]} 14. b3 {[%emt 0:00:58]} a6 {[%emt 0:02:48]} 15.
Nd4 {[%emt 0:01:56]} Bd7 {[%emt 0:03:04]} 16. Nf4 {[%emt 0:02:15]} c5 {[%emt 0:
00:00]} 17. Nde6 {[%emt 0:02:33]} Rfc8 {[%emt 0:01:23]} 18. Nxg6 {[%emt 0:00:
00]} Nxg6 {[%emt 0:01:34]} 19. Bxf5 {[%emt 0:00:05]} Nf8 {[%emt 0:02:10]} 20.
Nxg7 {[%emt 0:00:47]} Qxg7 {[%emt 0:01:04]} 21. fxe4 {[%emt 0:00:54]} Bxf5 {
[%emt 0:02:34]} 22. exf5 {[%emt 0:01:56]} N8d7 {[%emt 0:02:13]} 23. Rf4 {
[%emt 0:00:48]} Re8 {[%emt 0:02:17]} 24. Rh4 {[%emt 0:05:22]} h5 {[%emt 0:00:
00]} 25. Bb2 {[%emt 0:00:58]} Ne5 {[%emt 0:01:00]} 26. Qc2 {[%emt 0:03:17]} Re7
{[%emt 0:02:29]} 27. Rf1 {[%emt 0:01:44]} Rae8 {[%emt 0:02:41]} 28. Qc1 {
[%emt 0:03:26]} Kf7 {[%emt 0:03:43]} 29. b4 {[%emt 0:03:23]} b6 {[%emt 0:01:09]
} 30. Rhf4 {[%emt 0:00:32]} Neg4 {[%emt 0:01:36]} 31. bxc5 {[%emt 0:00:38]}
bxc5 {[%emt 0:00:14]} 32. e4 {[%emt 0:01:27]} Rxe4 {[%emt 0:01:49]} 33. Rxe4 {
[%emt 0:00:06]} Rxe4 {[%emt 0:00:07]} 34. Rf4 {[%emt 0:03:20]} Qg5 {[%emt 0:00:
00]} 35. h4 {[%emt 0:00:19]} Qg8 {[%emt 0:00:37]} 36. Bxf6 {[%emt 0:01:40]}
Nxf6 {[%emt 0:00:12]} 37. Kf2 {[%emt 0:00:35]} Qe8 {[%emt 0:02:08]} 38. Qb1 {
[%emt 0:00:55]} Rxf4+ {[%emt 0:00:45]} 39. gxf4 {[%emt 0:00:05]} Ng4+ {[%emt 0:
00:00]} 40. Kf1 {[%emt 0:00:14]} Qe3 {[%emt 0:02:25]} 41. Qb7+ {[%emt 0:31:09]}
Kf6 {[%emt 0:30:15]} 42. Qb2+ {[%emt 0:00:00]} Kxf5 {[%emt 0:00:00]} 43. a4 {
[%emt 0:00:00]} Kxf4 {[%emt 0:00:00]} 44. a5 {[%emt 0:00:00]} Qf3+ {[%emt 0:00:
00]} 45. Kg1 {[%emt 0:00:00]} Kg3 {[%emt 0:00:00]} 46. Qh2+ {[%emt 0:00:00]}
Nxh2 {[%emt 0:00:00]} 1/2-1/2

[Event "44th Chess Olympiad Women 2022"]
[Site "Chennai"]
[Date "2022.08.01"]
[Round "4.38"]
[White "Wafa, Shrook"]
[Black "Chuemsakul, Sarocha"]
[Result "1/2-1/2"]
[WhiteElo "2141"]
[BlackElo "1684"]
[Annotator "NA RC"]
[PlyCount "87"]
[EventDate "2022.??.??"]
[TimeControl "60"]

1. e4 {[%emt 0:00:04]} e5 {[%emt 0:00:11]} 2. Nf3 {[%emt 0:00:11]} Nc6 {
[%emt 0:00:12]} 3. Bb5 {[%emt 0:00:22]} a6 {[%emt 0:00:20]} 4. Ba4 {[%emt 0:00:
00]} d6 {[%emt 0:00:26]} 5. O-O {[%emt 0:00:31]} Bd7 {[%emt 0:00:21]} 6. c3 {
[%emt 0:00:37]} Nf6 {[%emt 0:00:53]} 7. Re1 {[%emt 0:00:41]} g6 {[%emt 0:00:28]
} 8. d4 {[%emt 0:00:31]} b5 {[%emt 0:15:02]} 9. Bb3 {[%emt 0:00:25]} Bg7 {
[%emt 0:00:23]} 10. Nbd2 {[%emt 0:01:58]} O-O {[%emt 0:00:21]} 11. a4 {[%emt 0:
00:00]} exd4 {[%emt 0:03:24]} 12. cxd4 {[%emt 0:01:04]} Nb4 {[%emt 0:00:57]}
13. e5 {[%emt 0:12:26]} dxe5 {[%emt 0:05:00]} 14. dxe5 {[%emt 0:02:05]} Nfd5 {
[%emt 0:01:02]} 15. Ne4 {[%emt 0:00:55]} Bg4 {[%emt 0:05:28]} 16. Bg5 {[%emt 0:
00:00]} Qd7 {[%emt 0:08:17]} 17. Nf6+ {[%emt 0:04:46]} Bxf6 {[%emt 0:01:39]}
18. exf6 {[%emt 0:06:57]} Qf5 {[%emt 0:03:32]} 19. Bh6 {[%emt 0:09:39]} Rfe8 {
[%emt 0:10:04]} 20. axb5 {[%emt 0:08:26]} axb5 {[%emt 0:18:45]} 21. Rxa8 {
[%emt 0:01:23]} Rxa8 {[%emt 0:00:09]} 22. Qe2 {[%emt 0:03:14]} Qd7 {[%emt 0:00:
00]} 23. h3 {[%emt 0:04:06]} Bxf3 {[%emt 0:04:15]} 24. Qxf3 {[%emt 0:00:13]} c5
{[%emt 0:00:45]} 25. Bd2 {[%emt 0:06:26]} Rd8 {[%emt 0:03:36]} 26. Bxb4 {
[%emt 0:05:49]} Nxb4 {[%emt 0:06:40]} 27. Re7 {[%emt 0:02:18]} Qd3 {[%emt 0:00:
00]} 28. Bxf7+ {[%emt 0:01:05]} Kf8 {[%emt 0:03:35]} 29. Qxd3 {[%emt 0:08:43]}
Nxd3 {[%emt 0:00:05]} 30. b3 {[%emt 0:04:02]} Rd6 {[%emt 0:01:26]} 31. Re6 {
[%emt 0:01:53]} Rxe6 {[%emt 0:00:17]} 32. Bxe6 {[%emt 0:00:07]} Nf4 {[%emt 0:
00:00]} 33. Bd7 {[%emt 0:00:47]} b4 {[%emt 0:00:04]} 34. g4 {[%emt 0:01:23]} g5
{[%emt 0:02:48]} 35. h4 {[%emt 0:01:00]} h6 {[%emt 0:00:25]} 36. hxg5 {[%emt 0:
00:00]} hxg5 {[%emt 0:00:01]} 37. f3 {[%emt 0:00:09]} Ne2+ {[%emt 0:00:59]} 38.
Kf2 {[%emt 0:00:16]} Nd4 {[%emt 0:00:07]} 39. f4 {[%emt 0:01:53]} gxf4 {
[%emt 0:00:47]} 40. g5 {[%emt 0:01:18]} Kf7 {[%emt 0:00:01]} 41. Bg4 {[%emt 0:
00:00]} Kg6 {[%emt 0:30:47]} 42. Bd7 {[%emt 0:01:22]} Kf7 {[%emt 0:00:00]} 43.
Bg4 {[%emt 0:00:00]} Kg6 {[%emt 0:00:00]} 44. Bd7 {[%emt 0:00:00]} 1/2-1/2

[Event "44th Chess Olympiad Women 2022"]
[Site "Chennai"]
[Date "2022.08.01"]
[Round "4.39"]
[White "Berzina, Ilze"]
[Black "Shaba, Linda Dalitso"]
[Result "1/2-1/2"]
[WhiteElo "2141"]
[BlackElo "1658"]
[Annotator "NA RC"]
[PlyCount "66"]
[EventDate "2022.??.??"]
[TimeControl "60"]

1. b3 {[%emt 0:00:07]} e5 {[%emt 0:00:39]} 2. Bb2 {[%emt 0:02:08]} d6 {[%emt 0:
00:00]} 3. g3 {[%emt 0:11:52]} g6 {[%emt 0:01:13]} 4. Bg2 {[%emt 0:00:09]} Bg7
{[%emt 0:00:12]} 5. d4 {[%emt 0:13:15]} exd4 {[%emt 0:04:36]} 6. Bxd4 {[%emt 0:
00:00]} Bxd4 {[%emt 0:00:36]} 7. Qxd4 {[%emt 0:00:05]} Qf6 {[%emt 0:00:13]} 8.
Qxf6 {[%emt 0:02:11]} Nxf6 {[%emt 0:00:07]} 9. Nc3 {[%emt 0:00:48]} Nc6 {
[%emt 0:06:01]} 10. e4 {[%emt 0:02:57]} a6 {[%emt 0:03:23]} 11. O-O-O {[%emt 0:
00:00]} Bd7 {[%emt 0:01:34]} 12. Nh3 {[%emt 0:05:11]} O-O-O {[%emt 0:02:30]}
13. Nf4 {[%emt 0:03:40]} Ng4 {[%emt 0:03:55]} 14. Rd2 {[%emt 0:02:02]} f5 {
[%emt 0:05:48]} 15. exf5 {[%emt 0:02:49]} Bxf5 {[%emt 0:05:54]} 16. h3 {
[%emt 0:01:06]} Nge5 {[%emt 0:01:35]} 17. g4 {[%emt 0:05:16]} g5 {[%emt 0:00:
00]} 18. Nfd5 {[%emt 0:01:31]} Bd7 {[%emt 0:01:30]} 19. Ne4 {[%emt 0:08:29]} h6
{[%emt 0:02:23]} 20. f4 {[%emt 0:01:48]} gxf4 {[%emt 0:05:19]} 21. Nxf4 {
[%emt 0:00:06]} Rhf8 {[%emt 0:02:12]} 22. Rf1 {[%emt 0:02:16]} Rde8 {[%emt 0:
00:00]} 23. Rdf2 {[%emt 0:04:12]} Nd4 {[%emt 0:10:33]} 24. Nd5 {[%emt 0:04:10]}
Rxf2 {[%emt 0:01:27]} 25. Rxf2 {[%emt 0:00:15]} Bc6 {[%emt 0:04:44]} 26. Nef6 {
[%emt 0:02:52]} Rf8 {[%emt 0:03:25]} 27. Kd1 {[%emt 0:11:43]} Bxd5 {[%emt 0:00:
00]} 28. Bxd5 {[%emt 0:00:11]} c6 {[%emt 0:01:19]} 29. Bg2 {[%emt 0:02:43]} d5
{[%emt 0:04:41]} 30. Rf4 {[%emt 0:03:00]} Ne6 {[%emt 0:03:06]} 31. Rf5 {
[%emt 0:00:17]} Nd7 {[%emt 0:01:33]} 32. Nxd7 {[%emt 0:02:07]} Kxd7 {[%emt 0:
00:00]} 33. Rxf8 {[%emt 0:00:54]} Nxf8 {[%emt 0:00:02]} 1/2-1/2

[Event "44th Chess Olympiad Women 2022"]
[Site "Chennai"]
[Date "2022.08.01"]
[Round "4.39"]
[White "Charinda, Kudzanayi"]
[Black "Rogule, Laura"]
[Result "0-1"]
[WhiteElo "1719"]
[BlackElo "2292"]
[Annotator "NA RC"]
[PlyCount "56"]
[EventDate "2022.??.??"]
[TimeControl "60"]

1. e4 {[%emt 0:00:44]} c5 {[%emt 0:00:20]} 2. Nf3 {[%emt 0:00:16]} e6 {[%emt 0:
00:00]} 3. d4 {[%emt 0:00:27]} cxd4 {[%emt 0:00:26]} 4. Nxd4 {[%emt 0:01:09]}
Nf6 {[%emt 0:00:09]} 5. Nc3 {[%emt 0:00:18]} Nc6 {[%emt 0:00:14]} 6. Nxc6 {
[%emt 0:01:37]} bxc6 {[%emt 0:00:13]} 7. Bd3 {[%emt 0:00:25]} e5 {[%emt 0:00:
00]} 8. O-O {[%emt 0:01:08]} Be7 {[%emt 0:11:23]} 9. Kh1 {[%emt 0:03:00]} d6 {
[%emt 0:06:38]} 10. Qe2 {[%emt 0:01:52]} Be6 {[%emt 0:07:12]} 11. f4 {[%emt 0:
00:00]} Rb8 {[%emt 0:12:27]} 12. b3 {[%emt 0:04:46]} O-O {[%emt 0:05:51]} 13.
f5 {[%emt 0:00:31]} Bc8 {[%emt 0:01:58]} 14. g4 {[%emt 0:00:43]} d5 {[%emt 0:
00:00]} 15. exd5 {[%emt 0:06:55]} cxd5 {[%emt 0:06:17]} 16. g5 {[%emt 0:03:20]}
e4 {[%emt 0:03:09]} 17. Bb5 {[%emt 0:02:37]} a6 {[%emt 0:03:16]} 18. Ba4 {
[%emt 0:02:28]} Ne8 {[%emt 0:02:43]} 19. f6 {[%emt 0:04:18]} Bb4 {[%emt 0:00:
00]} 20. Bd2 {[%emt 0:07:33]} e3 {[%emt 0:03:17]} 21. Be1 {[%emt 0:05:11]} Bb7
{[%emt 0:02:22]} 22. Kg1 {[%emt 0:02:46]} d4 {[%emt 0:01:15]} 23. Rf4 {[%emt 0:
00:00]} Bxc3 {[%emt 0:01:14]} 24. Rf5 {[%emt 0:11:15]} Bxa1 {[%emt 0:00:57]}
25. Bb4 {[%emt 0:00:47]} d3 {[%emt 0:00:57]} 26. cxd3 {[%emt 0:01:19]} Bf3 {
[%emt 0:00:29]} 27. Qe1 {[%emt 0:01:30]} Rxb4 {[%emt 0:00:21]} 28. Qxb4 {
[%emt 0:03:03]} Qd4 {[%emt 0:00:28]} 0-1

[Event "44th Chess Olympiad Women 2022"]
[Site "Chennai"]
[Date "2022.08.01"]
[Round "4.39"]
[White "Jansone, Melanija Luize"]
[Black "Zengeni, Tatenda Melisa"]
[Result "1/2-1/2"]
[WhiteElo "1584"]
[BlackElo "1553"]
[Annotator "NA RC"]
[PlyCount "64"]
[EventDate "2022.??.??"]
[TimeControl "60"]

1. e4 {[%emt 0:00:03]} d5 {[%emt 0:00:50]} 2. exd5 {[%emt 0:00:29]} Qxd5 {
[%emt 0:00:26]} 3. Nc3 {[%emt 0:01:22]} Qa5 {[%emt 0:00:21]} 4. d4 {[%emt 0:00:
00]} c6 {[%emt 0:00:44]} 5. Bd2 {[%emt 0:02:07]} Qc7 {[%emt 0:01:07]} 6. Bd3 {
[%emt 0:01:20]} Nf6 {[%emt 0:01:11]} 7. h3 {[%emt 0:02:05]} e6 {[%emt 0:01:34]}
8. Nf3 {[%emt 0:01:33]} Bd6 {[%emt 0:03:25]} 9. Qe2 {[%emt 0:10:22]} Nbd7 {
[%emt 0:01:58]} 10. Ng5 {[%emt 0:11:50]} Nf8 {[%emt 0:19:09]} 11. Nge4 {
[%emt 0:03:23]} Be7 {[%emt 0:10:04]} 12. Qf3 {[%emt 0:26:15]} Ng6 {[%emt 0:00:
00]} 13. Nxf6+ {[%emt 0:07:15]} Bxf6 {[%emt 0:00:44]} 14. Bxg6 {[%emt 0:00:39]}
hxg6 {[%emt 0:00:27]} 15. Qe4 {[%emt 0:02:30]} Qd6 {[%emt 0:04:31]} 16. Be3 {
[%emt 0:02:01]} Bd7 {[%emt 0:13:09]} 17. O-O-O {[%emt 0:01:43]} O-O-O {[%emt 0:
00:00]} 18. Bf4 {[%emt 0:03:27]} Qb4 {[%emt 0:00:56]} 19. a3 {[%emt 0:01:11]}
Qc4 {[%emt 0:02:42]} 20. Rd3 {[%emt 0:06:30]} g5 {[%emt 0:14:10]} 21. Bg3 {
[%emt 0:00:34]} Rhe8 {[%emt 0:05:44]} 22. Re1 {[%emt 0:02:31]} g6 {[%emt 0:00:
00]} 23. Kb1 {[%emt 0:02:17]} Bg7 {[%emt 0:03:49]} 24. Qe3 {[%emt 0:01:54]} e5
{[%emt 0:01:26]} 25. dxe5 {[%emt 0:02:11]} Be6 {[%emt 0:01:15]} 26. Rxd8+ {
[%emt 0:00:50]} Rxd8 {[%emt 0:00:01]} 27. Qxa7 {[%emt 0:01:07]} Bf8 {[%emt 0:
00:00]} 28. Qa8+ {[%emt 0:01:27]} Kc7 {[%emt 0:00:09]} 29. Qa5+ {[%emt 0:00:31]
} Kc8 {[%emt 0:00:07]} 30. Qa8+ {[%emt 0:02:16]} Kc7 {[%emt 0:00:14]} 31. Qa5+
{[%emt 0:00:16]} Kc8 {[%emt 0:00:26]} 32. Qa8+ {[%emt 0:00:23]} Kc7 {[%emt 0:
00:00]} 1/2-1/2

[Event "44th Chess Olympiad Women 2022"]
[Site "Chennai"]
[Date "2022.08.01"]
[Round "4.39"]
[White "Mudodo, Refiloe Hazel"]
[Black "Maklakova, Nellija"]
[Result "1/2-1/2"]
[WhiteElo "1604"]
[BlackElo "1819"]
[Annotator "NA RC"]
[PlyCount "117"]
[EventDate "2022.??.??"]
[TimeControl "60"]

1. e4 {[%emt 0:00:04]} e6 {[%emt 0:00:09]} 2. d4 {[%emt 0:00:40]} d5 {[%emt 0:
00:00]} 3. Nd2 {[%emt 0:00:42]} Nf6 {[%emt 0:00:15]} 4. e5 {[%emt 0:00:44]}
Nfd7 {[%emt 0:00:08]} 5. Bd3 {[%emt 0:01:16]} c5 {[%emt 0:03:07]} 6. c3 {
[%emt 0:02:22]} Nc6 {[%emt 0:03:23]} 7. Ne2 {[%emt 0:02:13]} g6 {[%emt 0:01:54]
} 8. O-O {[%emt 0:02:26]} Bg7 {[%emt 0:01:31]} 9. Nf3 {[%emt 0:01:57]} O-O {
[%emt 0:02:26]} 10. Bg5 {[%emt 0:03:54]} Qc7 {[%emt 0:01:51]} 11. Qd2 {[%emt 0:
00:00]} c4 {[%emt 0:05:54]} 12. Bc2 {[%emt 0:04:10]} f6 {[%emt 0:01:34]} 13.
exf6 {[%emt 0:03:31]} Nxf6 {[%emt 0:00:42]} 14. Ng3 {[%emt 0:01:21]} b5 {
[%emt 0:06:34]} 15. a3 {[%emt 0:04:38]} a5 {[%emt 0:00:22]} 16. Bh6 {[%emt 0:
00:00]} Ng4 {[%emt 0:01:30]} 17. Bxg7 {[%emt 0:04:28]} Qxg7 {[%emt 0:00:18]}
18. h3 {[%emt 0:01:06]} Nh6 {[%emt 0:00:53]} 19. Rfe1 {[%emt 0:02:01]} Ra7 {
[%emt 0:02:34]} 20. Ng5 {[%emt 0:06:15]} Nd8 {[%emt 0:03:30]} 21. Nf1 {[%emt 0:
00:00]} Nhf7 {[%emt 0:01:24]} 22. Nh2 {[%emt 0:01:29]} h6 {[%emt 0:01:59]} 23.
Nxf7 {[%emt 0:00:52]} Raxf7 {[%emt 0:03:05]} 24. Nf3 {[%emt 0:00:24]} g5 {
[%emt 0:01:18]} 25. Kh2 {[%emt 0:07:24]} Nc6 {[%emt 0:06:33]} 26. Re2 {[%emt 0:
00:00]} Rf4 {[%emt 0:01:35]} 27. Ne5 {[%emt 0:03:47]} Nxe5 {[%emt 0:03:08]} 28.
dxe5 {[%emt 0:00:09]} Qa7 {[%emt 0:03:59]} 29. f3 {[%emt 0:03:34]} d4 {[%emt 0:
00:00]} 30. cxd4 {[%emt 0:01:11]} Rxd4 {[%emt 0:00:33]} 31. Qe3 {[%emt 0:00:19]
} Qd7 {[%emt 0:00:36]} 32. Ree1 {[%emt 0:01:18]} Bb7 {[%emt 0:10:52]} 33. Rad1
{[%emt 0:01:47]} Rd8 {[%emt 0:00:51]} 34. Rxd4 {[%emt 0:01:02]} Qxd4 {[%emt 0:
00:00]} 35. Qxd4 {[%emt 0:00:07]} Rxd4 {[%emt 0:00:07]} 36. Rd1 {[%emt 0:00:44]
} Rxd1 {[%emt 0:00:36]} 37. Bxd1 {[%emt 0:00:03]} b4 {[%emt 0:00:40]} 38. axb4
{[%emt 0:00:20]} axb4 {[%emt 0:00:05]} 39. Kg3 {[%emt 0:00:13]} Bd5 {[%emt 0:
00:00]} 40. Bc2 {[%emt 0:02:05]} Kg7 {[%emt 0:09:43]} 41. Kf2 {[%emt 0:30:24]}
h5 {[%emt 0:31:37]} 42. Ke3 {[%emt 0:00:08]} h4 {[%emt 0:12:59]} 43. Kd4 {
[%emt 0:00:34]} Kf7 {[%emt 0:00:09]} 44. Be4 {[%emt 0:00:50]} Ke7 {[%emt 0:00:
00]} 45. Bc2 {[%emt 0:00:43]} Kd7 {[%emt 0:00:29]} 46. Ba4+ {[%emt 0:00:23]}
Kc7 {[%emt 0:00:00]} 47. Bb5 {[%emt 0:00:00]} c3 {[%emt 0:00:00]} 48. bxc3 {
[%emt 0:00:00]} bxc3 {[%emt 0:00:00]} 49. Kxc3 {[%emt 0:00:00]} Kb6 {[%emt 0:
00:00]} 50. Bc4 {[%emt 0:00:00]} Kc5 {[%emt 0:00:00]} 51. Ba6 {[%emt 0:00:00]}
Ba2 {[%emt 0:00:00]} 52. Kd3 {[%emt 0:00:00]} Kd5 {[%emt 0:00:00]} 53. Ke3 {
[%emt 0:00:00]} Kxe5 {[%emt 0:00:00]} 54. Bb5 {[%emt 0:00:00]} Bb1 {[%emt 0:00:
00]} 55. Bc4 {[%emt 0:00:00]} Kf5 {[%emt 0:00:00]} 56. Bb5 {[%emt 0:00:00]} Bc2
{[%emt 0:00:00]} 57. Bc4 {[%emt 0:00:00]} Ba4 {[%emt 0:00:00]} 58. Bd3+ {
[%emt 0:00:00]} Ke5 {[%emt 0:00:00]} 59. Bc4 {[%emt 0:00:00]} 1/2-1/2

[Event "44th Chess Olympiad Women 2022"]
[Site "Chennai"]
[Date "2022.08.01"]
[Round "4.40"]
[White "Munoz Henriquez, Alba Esther"]
[Black "Mihailova, Alina"]
[Result "0-1"]
[WhiteElo "1588"]
[BlackElo "1926"]
[Annotator "NA RC"]
[PlyCount "62"]
[EventDate "2022.??.??"]
[TimeControl "60"]

1. e4 {[%emt 0:00:03]} e5 {[%emt 0:00:07]} 2. Nf3 {[%emt 0:00:07]} Nc6 {
[%emt 0:00:08]} 3. Bb5 {[%emt 0:00:07]} a6 {[%emt 0:00:08]} 4. Ba4 {[%emt 0:00:
00]} Nf6 {[%emt 0:00:10]} 5. Qe2 {[%emt 0:00:46]} b5 {[%emt 0:02:22]} 6. Bb3 {
[%emt 0:00:07]} Be7 {[%emt 0:00:12]} 7. c3 {[%emt 0:00:08]} O-O {[%emt 0:00:29]
} 8. O-O {[%emt 0:00:08]} d5 {[%emt 0:04:37]} 9. exd5 {[%emt 0:12:49]} Nxd5 {
[%emt 0:02:15]} 10. Nxe5 {[%emt 0:02:49]} Nxe5 {[%emt 0:00:19]} 11. Qxe5 {
[%emt 0:00:26]} Nf6 {[%emt 0:01:04]} 12. d4 {[%emt 0:03:43]} Re8 {[%emt 0:00:
00]} 13. Qg3 {[%emt 0:04:02]} Bd6 {[%emt 0:01:52]} 14. Qd3 {[%emt 0:04:49]} c5
{[%emt 0:07:02]} 15. Bc2 {[%emt 0:00:49]} c4 {[%emt 0:13:16]} 16. Qd1 {[%emt 0:
00:00]} Qc7 {[%emt 0:06:23]} 17. h3 {[%emt 0:08:45]} Bb7 {[%emt 0:02:49]} 18.
Nd2 {[%emt 0:04:56]} Rad8 {[%emt 0:13:18]} 19. Nf3 {[%emt 0:08:12]} Qc6 {
[%emt 0:04:08]} 20. Bg5 {[%emt 0:07:34]} Bb8 {[%emt 0:01:51]} 21. Re1 {[%emt 0:
00:00]} h6 {[%emt 0:10:21]} 22. Rxe8+ {[%emt 0:07:39]} Rxe8 {[%emt 0:00:25]}
23. Be3 {[%emt 0:05:46]} Nd5 {[%emt 0:05:35]} 24. Qd2 {[%emt 0:03:58]} Qd6 {
[%emt 0:01:25]} 25. Re1 {[%emt 0:05:46]} Ne7 {[%emt 0:01:17]} 26. Qd1 {[%emt 0:
00:00]} Qd5 {[%emt 0:09:06]} 27. Bc1 {[%emt 0:00:41]} f5 {[%emt 0:01:28]} 28.
Qe2 {[%emt 0:02:51]} Kf7 {[%emt 0:03:12]} 29. Nh4 {[%emt 0:01:28]} Qd6 {
[%emt 0:05:59]} 30. Qe5 {[%emt 0:00:40]} Qc6 {[%emt 0:01:04]} 31. Bxf5 {
[%emt 0:00:28]} Bxe5 {[%emt 0:00:13]} 0-1

[Event "44th Chess Olympiad Women 2022"]
[Site "Chennai"]
[Date "2022.08.01"]
[Round "4.40"]
[White "Petricenco, Ana"]
[Black "Rondon Chacon, Yolys Desiree"]
[Result "1/2-1/2"]
[WhiteElo "1912"]
[BlackElo "1688"]
[Annotator "NA RC"]
[PlyCount "89"]
[EventDate "2022.??.??"]
[TimeControl "60"]

1. e4 {[%emt 0:00:03]} d5 {[%emt 0:00:24]} 2. exd5 {[%emt 0:00:08]} Qxd5 {
[%emt 0:00:05]} 3. Nc3 {[%emt 0:00:14]} Qd6 {[%emt 0:00:06]} 4. d4 {[%emt 0:00:
00]} Nf6 {[%emt 0:00:12]} 5. Nf3 {[%emt 0:00:05]} c6 {[%emt 0:00:13]} 6. g3 {
[%emt 0:00:28]} Bg4 {[%emt 0:03:42]} 7. Bg2 {[%emt 0:03:52]} e6 {[%emt 0:03:53]
} 8. O-O {[%emt 0:03:44]} Qc7 {[%emt 0:07:42]} 9. h3 {[%emt 0:01:21]} Bh5 {
[%emt 0:05:45]} 10. Re1 {[%emt 0:03:10]} Be7 {[%emt 0:08:43]} 11. Bf4 {[%emt 0:
00:00]} Qd8 {[%emt 0:01:30]} 12. Ne2 {[%emt 0:06:05]} O-O {[%emt 0:02:08]} 13.
c4 {[%emt 0:01:31]} Nbd7 {[%emt 0:06:33]} 14. Nc3 {[%emt 0:02:45]} Nb6 {
[%emt 0:03:08]} 15. g4 {[%emt 0:06:08]} Bg6 {[%emt 0:00:47]} 16. Ne5 {[%emt 0:
00:00]} Nfd7 {[%emt 0:07:21]} 17. Nxg6 {[%emt 0:05:50]} hxg6 {[%emt 0:00:08]}
18. d5 {[%emt 0:03:00]} cxd5 {[%emt 0:20:57]} 19. cxd5 {[%emt 0:00:27]} e5 {
[%emt 0:07:06]} 20. Bxe5 {[%emt 0:10:17]} Nxe5 {[%emt 0:00:07]} 21. Rxe5 {
[%emt 0:00:04]} Nc4 {[%emt 0:02:22]} 22. Re4 {[%emt 0:05:38]} Nd6 {[%emt 0:00:
00]} 23. Re2 {[%emt 0:00:12]} Re8 {[%emt 0:01:46]} 24. Qd3 {[%emt 0:02:19]} Bf6
{[%emt 0:02:43]} 25. Rae1 {[%emt 0:05:57]} Rxe2 {[%emt 0:01:35]} 26. Rxe2 {
[%emt 0:00:06]} Rc8 {[%emt 0:02:20]} 27. Rc2 {[%emt 0:07:31]} Qc7 {[%emt 0:00:
00]} 28. Rc1 {[%emt 0:07:05]} Qb6 {[%emt 0:02:21]} 29. Rc2 {[%emt 0:02:11]} Qc7
{[%emt 0:00:36]} 30. Bf3 {[%emt 0:07:24]} Qe7 {[%emt 0:04:56]} 31. Kg2 {
[%emt 0:02:16]} Qc7 {[%emt 0:01:09]} 32. Bd1 {[%emt 0:01:09]} Qa5 {[%emt 0:00:
00]} 33. Be2 {[%emt 0:06:58]} Qc5 {[%emt 0:00:12]} 34. Kg1 {[%emt 0:03:19]} Qa5
{[%emt 0:01:08]} 35. a3 {[%emt 0:02:08]} Bxc3 {[%emt 0:01:01]} 36. Rxc3 {
[%emt 0:00:32]} Rxc3 {[%emt 0:00:24]} 37. Qxc3 {[%emt 0:00:31]} Qxd5 {[%emt 0:
00:00]} 38. Bf3 {[%emt 0:00:15]} Qe6 {[%emt 0:00:32]} 39. Kg2 {[%emt 0:00:31]}
b6 {[%emt 0:00:16]} 40. Qd3 {[%emt 0:00:32]} Qe5 {[%emt 0:01:00]} 41. b3 {
[%emt 0:30:43]} Qc5 {[%emt 0:04:12]} 42. b4 {[%emt 0:00:00]} Qe5 {[%emt 0:00:
00]} 43. a4 {[%emt 0:00:00]} Qf4 {[%emt 0:03:11]} 44. b5 {[%emt 0:00:00]} Qe5 {
[%emt 0:04:09]} 45. Bc6 {[%emt 0:00:00]} 1/2-1/2

[Event "44th Chess Olympiad Women 2022"]
[Site "Chennai"]
[Date "2022.08.01"]
[Round "4.40"]
[White "Vasquez Jaen, Lourdes Lorena"]
[Black "Petrenko, Svetlana"]
[Result "0-1"]
[WhiteElo "1653"]
[BlackElo "2029"]
[Annotator "NA RC"]
[PlyCount "68"]
[EventDate "2022.??.??"]
[TimeControl "60"]

1. e4 {[%emt 0:00:05]} d6 {[%emt 0:00:07]} 2. d4 {[%emt 0:00:25]} Nf6 {[%emt 0:
00:00]} 3. Nc3 {[%emt 0:00:31]} c6 {[%emt 0:00:07]} 4. f4 {[%emt 0:01:08]} Qa5
{[%emt 0:01:41]} 5. Bd3 {[%emt 0:00:49]} e5 {[%emt 0:02:06]} 6. Nf3 {[%emt 0:
00:00]} Nbd7 {[%emt 0:01:50]} 7. O-O {[%emt 0:03:27]} Be7 {[%emt 0:02:28]} 8.
Bd2 {[%emt 0:08:30]} Qc7 {[%emt 0:01:32]} 9. Kh1 {[%emt 0:03:27]} O-O {[%emt 0:
00:00]} 10. Qe1 {[%emt 0:09:24]} exd4 {[%emt 0:10:19]} 11. Nxd4 {[%emt 0:00:09]
} Nc5 {[%emt 0:00:09]} 12. h3 {[%emt 0:09:57]} Nxd3 {[%emt 0:00:48]} 13. cxd3 {
[%emt 0:00:02]} Qb6 {[%emt 0:01:45]} 14. Nb3 {[%emt 0:11:37]} Be6 {[%emt 0:00:
00]} 15. Be3 {[%emt 0:04:40]} c5 {[%emt 0:06:27]} 16. Qd1 {[%emt 0:11:28]} Bxb3
{[%emt 0:00:17]} 17. axb3 {[%emt 0:00:08]} Qc6 {[%emt 0:01:32]} 18. Qf3 {
[%emt 0:02:52]} Rfd8 {[%emt 0:10:59]} 19. g4 {[%emt 0:04:59]} d5 {[%emt 0:00:
00]} 20. g5 {[%emt 0:00:34]} d4 {[%emt 0:10:08]} 21. gxf6 {[%emt 0:00:05]} Bxf6
{[%emt 0:00:07]} 22. Bxd4 {[%emt 0:07:43]} Bxd4 {[%emt 0:02:00]} 23. Nd5 {
[%emt 0:00:30]} Kh8 {[%emt 0:05:02]} 24. Ne7 {[%emt 0:02:53]} Qb5 {[%emt 0:00:
00]} 25. Rad1 {[%emt 0:00:18]} Qxb3 {[%emt 0:00:52]} 26. Rd2 {[%emt 0:00:06]}
a5 {[%emt 0:09:13]} 27. Nf5 {[%emt 0:00:21]} a4 {[%emt 0:01:28]} 28. Nxd4 {
[%emt 0:02:39]} Rxd4 {[%emt 0:00:13]} 29. Rg1 {[%emt 0:00:23]} Rg8 {[%emt 0:00:
00]} 30. Qe3 {[%emt 0:03:52]} f5 {[%emt 0:03:05]} 31. e5 {[%emt 0:03:16]} Qe6 {
[%emt 0:05:13]} 32. Rc2 {[%emt 0:00:51]} Qd5+ {[%emt 0:00:35]} 33. Rgg2 {
[%emt 0:01:08]} Rxd3 {[%emt 0:00:10]} 34. Rxc5 {[%emt 0:02:00]} Qxg2+ {[%emt 0:
00:00]} 0-1